bitfinex/quotes_BTCUSD_20251117
["timestamp","ask_amount","ask_price","bid_price","bid_amount"]
[1763370140706,0.57551002,95652.0,95651.0,0.002]
[1763370140910,0.62668811,95652.0,95651.0,0.002]
[1763370141330,0.323,95642.0,95641.0,0.00135029]
[1763370141510,0.34228983,95642.0,95641.0,0.00135029]
[1763370141943,0.34228983,95642.0,95610.0,0.01153]
[1763370142148,0.01928983,95641.0,95627.0,0.03544]
[1763370142352,0.01928983,95640.0,95627.0,0.03544]
[1763370142560,0.01928983,95639.0,95634.0,0.02311]
[1763370142991,0.01928983,95639.0,95638.0,0.0425438]
[1763370143426,0.02896365,95639.0,95638.0,0.0425438]
[1763370143839,0.02996365,95639.0,95638.0,0.0425438]
[1763370144642,0.02996365,95639.0,95638.0,0.0194338]
[1763370145088,0.02996365,95639.0,95638.0,0.0030438]
[1763370145711,0.02996365,95639.0,95638.0,0.0194338]
[1763370146114,0.02996365,95639.0,95638.0,0.0425438]
[1763370146247,0.02996365,95639.0,95638.0,0.0194338]
[1763370146457,0.02996365,95639.0,95638.0,0.0425438]
[1763370146857,0.11376365,95639.0,95638.0,0.0425438]
[1763370147378,0.13604104,95639.0,95638.0,0.0425438]
[1763370149383,0.13604104,95639.0,95638.0,0.0194338]
[1763370149585,0.13604104,95639.0,95638.0,0.0030438]
[1763370150732,0.17332794,95639.0,95638.0,0.0030438]
[1763370151073,0.13604104,95639.0,95638.0,0.0030438]
[1763370152221,0.13604104,95639.0,95638.0,0.0194338]
[1763370152415,0.13604104,95639.0,95638.0,0.0425438]
[1763370153445,0.13604104,95639.0,95638.0,0.0194338]
[1763370153645,0.13604104,95639.0,95638.0,0.0030438]
[1763370153850,0.13604104,95639.0,95638.0,0.0425438]
[1763370154059,0.13604104,95639.0,95638.0,0.0194338]
[1763370154263,0.13604104,95639.0,95638.0,0.0425438]
[1763370155125,0.13604104,95639.0,95638.0,0.0194338]
[1763370156269,0.13604104,95639.0,95638.0,0.0182138]
[1763370157508,0.11675121,95639.0,95638.0,0.0182138]
[1763370157671,0.13619629,95639.0,95638.0,0.0413238]
[1763370158495,0.50261503,95639.0,95638.0,0.0018238]
[1763370158700,0.71173474,95639.0,95638.0,0.0018238]
[1763370159277,0.323,95626.0,95616.0,0.02311]
[1763370159484,0.05139629,95625.0,95619.0,0.01157418]
[1763370159735,0.03732497,95623.0,95619.0,0.01157418]
[1763370159933,0.05139629,95622.0,95619.0,0.01157418]
[1763370160144,0.05139629,95621.0,95619.0,0.01157418]
[1763370160348,0.05139629,95620.0,95619.0,0.01157418]
[1763370160563,0.08872126,95620.0,95619.0,0.01157418]
[1763370160766,0.08872126,95620.0,95619.0,0.02796418]
[1763370161002,0.08872126,95620.0,95619.0,0.05107418]
[1763370161202,0.08872126,95620.0,95619.0,0.05159422]
[1763370161375,0.05139629,95620.0,95619.0,0.05159422]
[1763370162647,0.05239629,95620.0,95619.0,0.00056422]
[1763370162850,0.64054501,95620.0,95619.0,0.00056422]
[1763370163065,0.63954501,95620.0,95619.0,0.00056422]
[1763370163266,0.58355755,95620.0,95619.0,0.00056422]
[1763370163687,0.62697629,95620.0,95619.0,0.00056422]
[1763370163889,0.62797629,95620.0,95619.0,0.00056422]
[1763370164513,0.37539629,95620.0,95619.0,0.00056422]
[1763370165090,0.37739629,95620.0,95619.0,0.00056422]
[1763370165470,0.40050629,95620.0,95619.0,0.00056422]
[1763370166626,0.60966755,95620.0,95619.0,0.00056422]
[1763370166801,0.66181852,95620.0,95619.0,0.00056422]
[1763370167030,0.74565852,95620.0,95619.0,0.00056422]
[1763370167864,0.81853527,95620.0,95619.0,0.00056422]
[1763370168065,0.78907726,95620.0,95619.0,0.00056422]
[1763370168273,0.70523726,95620.0,95619.0,0.00056422]
[1763370168495,0.7382754,95620.0,95619.0,0.00056422]
[1763370169026,0.5755975,95612.0,95611.0,0.002]
[1763370169228,0.68302496,95612.0,95611.0,0.002]
[1763370169435,0.62712625,95612.0,95611.0,0.002]
[1763370169636,0.68311439,95612.0,95611.0,0.002]
[1763370170037,0.68411439,95612.0,95611.0,0.002]
[1763370170238,0.68511439,95612.0,95611.0,0.002]
[1763370171278,0.68411439,95612.0,95611.0,0.002]
[1763370171690,0.68611439,95612.0,95611.0,0.002]
[1763370171897,0.68511439,95612.0,95611.0,0.002]
[1763370172092,0.68611439,95612.0,95611.0,0.002]
[1763370172860,0.71981932,95612.0,95611.0,0.002]
[1763370174119,0.71981932,95612.0,95580.0,0.0004]
[1763370174120,0.04341874,95609.0,95580.0,0.0004]
[1763370174329,0.05215097,95582.0,95580.0,0.0004]
[1763370174568,0.01944508,95581.0,95580.0,0.0004]
[1763370174997,0.01944508,95581.0,95580.0,0.02808]
[1763370175439,0.01957747,95581.0,95580.0,0.01171]
[1763370176279,0.01957747,95581.0,95580.0,0.0004]
[1763370176670,0.02925381,95581.0,95580.0,0.0004]
[1763370176857,0.43609381,95581.0,95580.0,0.0004]
[1763370177086,0.4583712,95581.0,95580.0,0.0004]
[1763370177292,0.42668217,95581.0,95580.0,0.0004]
[1763370177503,0.51056217,95581.0,95580.0,0.0004]
[1763370178132,0.76322751,95581.0,95580.0,0.0004]
[1763370178779,0.69577244,95581.0,95580.0,0.0004]
[1763370178978,0.72881058,95581.0,95580.0,0.0004]
[1763370180266,0.04341874,95576.0,95575.0,0.00044183]
[1763370180484,0.27495368,95576.0,95575.0,0.00044183]
[1763370180690,0.14568163,95576.0,95575.0,0.00139877]
[1763370180891,0.07442836,95576.0,95575.0,0.04071877]
[1763370181094,0.05215097,95580.0,95575.0,0.04037877]
[1763370181291,0.05215097,95580.0,95579.0,0.02768]
[1763370181490,0.05215097,95580.0,95579.0,0.02647377]
[1763370181714,0.05215097,95580.0,95579.0,0.04873]
[1763370183469,0.05215097,95580.0,95579.0,0.04973]
[1763370184506,0.03146205,95580.0,95579.0,0.04973]
[1763370184828,0.323,95589.0,95579.0,0.04973]
[1763370185039,0.03145991,95586.0,95580.0,0.03932]
[1763370185245,0.03145991,95586.0,95580.0,0.02295]
[1763370185374,0.03145991,95586.0,95585.0,0.01637]
[1763370185782,0.03145991,95586.0,95585.0,0.03932]
[1763370187084,0.11533991,95586.0,95585.0,0.03932]
[1763370187285,0.11533991,95586.0,95585.0,0.01637]
[1763370187495,0.1376446,95586.0,95585.0,0.01637]
[1763370187703,0.1376446,95586.0,95579.0,0.0347026]
[1763370187704,0.53223795,95585.0,95579.0,0.0117526]
[1763370187930,0.02230469,95584.0,95579.0,0.0117526]
[1763370188140,0.02230469,95584.0,95579.0,0.0347026]
[1763370188370,0.02230469,95584.0,95583.0,0.01637]
[1763370188578,0.42918469,95584.0,95583.0,0.01637]
[1763370188792,0.42918469,95584.0,95583.0,0.03932]
[1763370189955,0.42918469,95584.0,95583.0,0.04032]
[1763370190380,0.45701922,95584.0,95583.0,0.04032]
[1763370190587,0.45712682,95584.0,95583.0,0.04032]
[1763370191225,0.42921192,95584.0,95583.0,0.04032]
[1763370191430,0.42921192,95584.0,95583.0,0.01737]
[1763370191846,0.42921192,95584.0,95583.0,0.03932]
[1763370192277,0.45831727,95584.0,95583.0,0.03932]
[1763370192491,0.05143727,95584.0,95583.0,0.03932]
[1763370192690,0.10061549,95584.0,95583.0,0.03932]
[1763370192917,0.10061549,95584.0,95583.0,0.04005817]
[1763370193124,0.01673549,95584.0,95583.0,0.04005817]
[1763370193351,0.10061549,95584.0,95583.0,0.04005817]
[1763370193682,0.10061549,95584.0,95583.0,0.14005817]
[1763370194766,0.10061549,95584.0,95583.0,0.14105817]
[1763370195890,0.01673549,95584.0,95583.0,0.14105817]
[1763370196025,0.10061549,95584.0,95583.0,0.14105817]
[1763370196234,0.10061549,95584.0,95583.0,0.19047817]
[1763370196851,0.10061549,95584.0,95583.0,0.14105817]
[1763370197824,0.01673549,95584.0,95583.0,0.14105817]
[1763370198027,0.0279422,95608.0,95590.0,0.2]
[1763370198234,0.08388,95611.0,95610.0,0.02568]
[1763370198445,0.16776,95611.0,95610.0,0.02568]
[1763370198648,0.16776,95611.0,95610.0,0.04986]
[1763370198796,0.1774775,95611.0,95610.0,0.04986]
[1763370199209,0.16776,95611.0,95610.0,0.04986]
[1763370199413,0.1678929,95611.0,95610.0,0.14986]
[1763370201337,0.1678929,95611.0,95610.0,0.15086]
[1763370201530,0.17760095,95611.0,95610.0,0.05086]
[1763370201886,0.17760095,95611.0,95610.0,0.04986]
[1763370202092,0.17760095,95611.0,95609.0,0.01238]
[1763370202269,0.1678929,95611.0,95610.0,0.001]
[1763370202460,0.2090533,95611.0,95610.0,0.001]
[1763370202663,0.2090533,95611.0,95609.0,0.01238]
[1763370202867,0.0097059,95610.0,95609.0,0.01238]
[1763370203076,0.21888903,95610.0,95607.0,0.1]
[1763370203279,0.54863751,95608.0,95607.0,0.1]
[1763370203477,0.54863751,95608.0,95601.0,0.00024606]
[1763370203478,0.20920064,95602.0,95601.0,0.00024606]
[1763370203677,0.21890654,95602.0,95601.0,0.00024606]
[1763370203891,0.28750751,95602.0,95601.0,0.00024606]
[1763370204534,0.38485687,95602.0,95601.0,0.00024606]
[1763370204717,0.49109416,95602.0,95601.0,0.03968606]
[1763370204921,0.49209416,95602.0,95601.0,0.03968606]
[1763370205358,0.52103967,95602.0,95601.0,0.03968606]
[1763370205798,0.52003967,95602.0,95601.0,0.03968606]
[1763370206237,0.51903967,95602.0,95601.0,0.03968606]
[1763370206484,0.52003967,95602.0,95601.0,0.03968606]
[1763370206700,0.55049519,95602.0,95601.0,0.03968606]
[1763370208448,0.55049519,95602.0,95601.0,0.00024606]
[1763370208449,0.56694519,95602.0,95601.0,0.00024606]
[1763370208664,0.55049519,95602.0,95601.0,0.00024606]
[1763370208926,0.52254968,95602.0,95601.0,0.00024606]
[1763370209142,0.18984378,95602.0,95601.0,0.00024606]
[1763370209575,0.19084378,95602.0,95601.0,0.00024606]
[1763370209778,0.15711274,95602.0,95601.0,0.00024606]
[1763370210299,0.36631338,95602.0,95601.0,0.00024606]
[1763370210854,0.21489419,95602.0,95601.0,0.00024606]
[1763370211058,0.25482419,95602.0,95601.0,0.00024606]
[1763370211263,0.30697516,95602.0,95601.0,0.00024606]
[1763370211467,0.3503939,95602.0,95601.0,0.00024606]
[1763370212640,0.3513939,95602.0,95601.0,0.00024606]
[1763370212854,0.3503939,95602.0,95601.0,0.00024606]
[1763370213056,0.22385225,95602.0,95601.0,0.00024606]
[1763370213260,0.22485225,95602.0,95601.0,0.00024606]
[1763370213473,0.51620386,95602.0,95601.0,0.00024606]
[1763370213683,0.52323386,95602.0,95601.0,0.00024606]
[1763370214322,0.52423386,95602.0,95601.0,0.00024606]
[1763370214940,0.53126386,95602.0,95601.0,0.00024606]
[1763370215356,0.5746826,95602.0,95601.0,0.00024606]
[1763370216177,0.5736826,95602.0,95601.0,0.00024606]
[1763370216386,0.53320064,95602.0,95601.0,0.00024606]
[1763370216594,0.324,95602.0,95601.0,0.00024606]
[1763370216799,0.40788,95602.0,95601.0,0.01550606]
[1763370217013,0.40788,95602.0,95601.0,0.00024606]
[1763370217222,0.40688,95602.0,95601.0,0.00024606]
[1763370217634,0.61708064,95602.0,95601.0,0.00024606]
[1763370217858,0.40788,95602.0,95601.0,0.00024606]
[1763370218281,0.61708064,95602.0,95601.0,0.00024606]
[1763370219076,0.61608064,95602.0,95601.0,0.00024606]
[1763370219837,0.40688,95602.0,95601.0,0.00024606]
[1763370220209,0.40688,95602.0,95601.0,0.01550606]
[1763370220411,0.40688,95602.0,95601.0,0.03968606]
[1763370220620,0.40688,95602.0,95601.0,0.01550606]
[1763370221124,0.40688,95602.0,95601.0,0.03968606]
[1763370221330,0.40688,95602.0,95601.0,0.01550606]
[1763370224329,0.41660107,95602.0,95601.0,0.01550606]
[1763370224543,0.41660107,95602.0,95601.0,0.02788606]
[1763370225531,0.41660107,95602.0,95601.0,0.05091606]
[1763370225731,0.33272107,95602.0,95601.0,0.05091606]
[1763370225949,0.40688,95602.0,95601.0,0.05091606]
[1763370226180,0.08388,95602.0,95601.0,0.05091606]
[1763370229230,0.10628946,95602.0,95601.0,0.05091606]
[1763370229668,0.08388,95602.0,95601.0,0.05091606]
[1763370231169,0.08388,95602.0,95601.0,0.02788606]
[1763370231809,0.08388,95602.0,95601.0,0.00024606]
[1763370232024,0.30011064,95602.0,95601.0,0.00024606]
[1763370232248,0.65525262,95602.0,95601.0,0.00024606]
[1763370232448,0.71443359,95602.0,95601.0,0.00024606]
[1763370233298,0.75154668,95602.0,95601.0,0.00024606]
[1763370233708,0.74451668,95602.0,95601.0,0.00024606]
[1763370235133,0.70740359,95602.0,95601.0,0.00024606]
[1763370237253,0.49820295,95602.0,95601.0,0.00024606]
[1763370237611,0.47640514,95602.0,95601.0,0.01586606]
[1763370237749,0.47640514,95602.0,95601.0,0.03889606]
[1763370238652,0.39252514,95602.0,95601.0,0.03889606]
[1763370238853,0.43902198,95602.0,95601.0,0.03889606]
[1763370239673,0.43902198,95602.0,95601.0,0.01586606]
[1763370240023,0.43902198,95602.0,95601.0,0.03889606]
[1763370240242,0.03214198,95602.0,95601.0,0.03889606]
[1763370240444,0.08388,95602.0,95601.0,0.03889606]
[1763370244913,0.08388,95602.0,95601.0,0.01586606]
[1763370245534,0.20918853,95608.0,95601.0,0.03889606]
[1763370245740,0.08388,95602.0,95601.0,0.00024606]
[1763370245945,0.02920318,95607.0,95601.0,0.00024606]
[1763370245946,0.29307064,95607.0,95601.0,0.00024606]
[1763370246154,0.29307064,95607.0,95602.0,0.01562]
[1763370246155,0.20919201,95606.0,95602.0,0.01562]
[1763370246563,0.2930713,95607.0,95602.0,0.01562]
[1763370246784,0.08388,95607.0,95602.0,0.01562]
[1763370247000,0.40688,95607.0,95602.0,0.03865]
[1763370247419,0.40688,95607.0,95606.0,0.01562]
[1763370247631,0.40688,95607.0,95601.0,0.00024606]
[1763370248163,0.08388,95607.0,95601.0,0.00024606]
[1763370248379,0.05215097,95603.0,95601.0,0.00024606]
[1763370249012,0.26134989,95603.0,95601.0,0.00024606]
[1763370249171,0.20920064,95602.0,95601.0,0.00024606]
[1763370249369,0.26134989,95603.0,95601.0,0.00024606]
[1763370249606,0.05215097,95603.0,95601.0,0.00024606]
[1763370249806,0.37515097,95603.0,95601.0,0.00024606]
[1763370250217,0.20920064,95602.0,95601.0,0.00024606]
[1763370250688,0.37515097,95603.0,95601.0,0.00024606]
[1763370250901,0.05215097,95603.0,95601.0,0.01586606]
[1763370251190,0.323,95606.0,95602.0,0.03865]
[1763370251392,0.08388,95607.0,95605.0,0.01562]
[1763370251605,0.08388,95607.0,95601.0,0.00024606]
[1763370251771,0.05215097,95603.0,95601.0,0.00024606]
[1763370252207,0.05215097,95603.0,95602.0,0.01562]
[1763370252568,0.05215097,95603.0,95602.0,0.03865]
[1763370252890,0.05215097,95603.0,95602.0,0.01562]
[1763370253337,0.05215097,95603.0,95601.0,0.00024606]
[1763370253547,0.323,95606.0,95601.0,0.00024606]
[1763370253666,0.08388,95607.0,95601.0,0.00024606]
[1763370253870,0.05215097,95603.0,95601.0,0.00024606]
[1763370254315,0.05215097,95603.0,95602.0,0.03865]
[1763370254490,0.323,95606.0,95602.0,0.03865]
[1763370254694,0.323,95606.0,95605.0,0.01562]
[1763370254895,0.08388,95607.0,95605.0,0.01562]
[1763370255154,0.08388,95607.0,95606.0,0.03865]
[1763370256726,0.42931692,95607.0,95606.0,0.03865]
[1763370257749,0.323,95606.0,95601.0,0.00024606]
[1763370257966,0.0516527,95605.0,95601.0,0.00024606]
[1763370258191,0.02921578,95604.0,95601.0,0.02424606]
[1763370258393,0.01947719,95603.0,95601.0,0.02424606]
[1763370258595,0.02921564,95602.0,95601.0,0.02424606]
[1763370258748,0.01947719,95602.0,95601.0,0.02424606]
[1763370258947,0.11309585,95602.0,95601.0,0.04024606]
[1763370259153,0.10631792,95602.0,95601.0,0.02424606]
[1763370259390,0.08388,95602.0,95601.0,0.04024606]
[1763370261731,0.08388,95602.0,95601.0,0.00024606]
[1763370262152,0.09091,95602.0,95601.0,0.00024606]
[1763370262330,0.30984908,95602.0,95601.0,0.00024606]
[1763370263018,0.09361844,95602.0,95601.0,0.00024606]
[1763370264906,0.30281908,95602.0,95601.0,0.00024606]
[1763370265079,0.09361844,95602.0,95601.0,0.00024606]
[1763370265994,0.30281908,95602.0,95601.0,0.00024606]
[1763370266201,0.09361844,95602.0,95601.0,0.00024606]
[1763370267292,0.00973844,95602.0,95601.0,0.00024606]
[1763370267461,0.31687908,95602.0,95601.0,0.00024606]
[1763370267660,0.35461647,95602.0,95601.0,0.00024606]
[1763370268007,0.37103874,95602.0,95601.0,0.00024606]
[1763370268217,0.35461647,95602.0,95601.0,0.00024606]
[1763370268633,0.09361844,95602.0,95601.0,0.00024606]
[1763370270106,0.33273844,95602.0,95601.0,0.00024606]
[1763370270514,0.54193908,95602.0,95601.0,0.00024606]
[1763370270947,0.33273844,95602.0,95601.0,0.00024606]
[1763370271155,0.5583616,95602.0,95601.0,0.00024606]
[1763370271363,0.58080903,95602.0,95601.0,0.00024606]
[1763370272419,0.59486903,95602.0,95601.0,0.00024606]
[1763370272838,0.58783903,95602.0,95601.0,0.00024606]
[1763370273511,0.61929831,95602.0,95601.0,0.00024606]
[1763370273711,0.62632831,95602.0,95601.0,0.00024606]
[1763370273917,0.61929831,95602.0,95601.0,0.00024606]
[1763370275744,0.13221864,95602.0,95601.0,0.00024606]
[1763370276164,0.1696103,95602.0,95601.0,0.00024606]
[1763370276800,0.4926103,95602.0,95601.0,0.00024606]
[1763370277027,0.5764903,95602.0,95601.0,0.00024606]
[1763370277234,0.78569094,95602.0,95601.0,0.00024606]
[1763370277443,0.5764894,95602.0,95601.0,0.00024606]
[1763370277863,0.53909087,95602.0,95601.0,0.00024606]
[1763370278079,0.4030599,95602.0,95601.0,0.04024606]
[1763370278319,0.51498969,95602.0,95601.0,0.04024606]
[1763370278530,0.4869399,95602.0,95601.0,0.04024606]
[1763370278751,0.47051738,95602.0,95601.0,0.04024606]
[1763370282548,0.47051738,95602.0,95601.0,0.00024606]
[1763370282754,0.73889899,95602.0,95601.0,0.00024606]
[1763370283949,0.52266835,95602.0,95601.0,0.00024606]
[1763370284154,0.47051738,95602.0,95601.0,0.00024606]
[1763370285764,0.47051738,95602.0,95601.0,0.01559606]
[1763370287839,0.47051738,95602.0,95601.0,0.00024606]
[1763370288257,0.47051738,95602.0,95601.0,0.01559606]
[1763370288485,0.47051738,95602.0,95601.0,0.03875606]
[1763370288861,0.47051738,95602.0,95601.0,0.01559606]
[1763370289065,0.47051738,95602.0,95601.0,0.03875606]
[1763370289066,0.38663738,95602.0,95601.0,0.03875606]
[1763370289221,0.47051738,95602.0,95601.0,0.03875606]
[1763370289633,0.10631966,95602.0,95601.0,0.03875606]
[1763370289813,0.08388,95602.0,95601.0,0.03875606]
[1763370296464,0.08388,95602.0,95601.0,0.00024606]
[1763370296877,0.10632479,95602.0,95601.0,0.00024606]
[1763370298516,0.15847576,95602.0,95601.0,0.00024606]
[1763370299589,0.6977064,95602.0,95601.0,0.00024606]
[1763370299774,0.73549914,95602.0,95601.0,0.00024606]
[1763370299980,0.70744315,95602.0,95601.0,0.00024606]
[1763370300566,0.71447315,95602.0,95601.0,0.00024606]
[1763370300771,0.70744315,95602.0,95601.0,0.00024606]
[1763370301508,0.49824251,95602.0,95601.0,0.00024606]
[1763370301738,0.49121251,95602.0,95601.0,0.00024606]
[1763370303217,0.49824251,95602.0,95601.0,0.00024606]
[1763370303423,0.70744315,95602.0,95601.0,0.00024606]
[1763370303683,0.49121251,95602.0,95601.0,0.00024606]
[1763370306395,0.70041315,95602.0,95601.0,0.00024606]
[1763370307356,0.49121251,95602.0,95601.0,0.00024606]
[1763370310121,0.52267011,95602.0,95601.0,0.00024606]
[1763370311401,0.54213564,95602.0,95601.0,0.00024606]
[1763370311604,0.57016986,95602.0,95601.0,0.02736606]
[1763370311804,0.54213564,95602.0,95601.0,0.02736606]
[1763370312012,0.54213564,95602.0,95601.0,0.01201606]
[1763370312225,0.54213564,95602.0,95601.0,0.00024606]
[1763370312445,0.75836628,95602.0,95601.0,0.00024606]
[1763370312721,0.54916564,95602.0,95601.0,0.00024606]
[1763370312921,0.75836628,95602.0,95601.0,0.00024606]
[1763370313928,0.75133628,95602.0,95601.0,0.00024606]
[1763370315173,0.75836628,95602.0,95601.0,0.00024606]
[1763370316243,0.41292149,95602.0,95601.0,0.00024606]
[1763370316594,0.41995149,95602.0,95601.0,0.00024606]
[1763370316806,0.35974888,95602.0,95601.0,0.00024606]
[1763370316981,0.40589149,95602.0,95601.0,0.00024606]
[1763370317614,0.41292149,95602.0,95601.0,0.00024606]
[1763370317839,0.41995149,95602.0,95601.0,0.00024606]
[1763370318013,0.28669566,95602.0,95601.0,0.00024606]
[1763370318232,0.60969566,95602.0,95601.0,0.00024606]
[1763370318432,0.64115636,95602.0,95601.0,0.00024606]
[1763370319433,0.50455167,95602.0,95601.0,0.00024606]
[1763370319633,0.52553673,95602.0,95601.0,0.00024606]
[1763370320037,0.65085737,95602.0,95601.0,0.00024606]
[1763370320642,0.66728025,95602.0,95601.0,0.00024606]
[1763370321058,0.45807961,95602.0,95601.0,0.00024606]
[1763370322000,0.43006455,95602.0,95601.0,0.00024606]
[1763370322200,0.45807961,95602.0,95601.0,0.00024606]
[1763370322432,0.66728025,95602.0,95601.0,0.00024606]
[1763370322781,0.45807961,95602.0,95601.0,0.00024606]
[1763370323202,0.66728025,95602.0,95601.0,0.00024606]
[1763370323411,0.45807961,95602.0,95601.0,0.00024606]
[1763370323624,0.66728025,95602.0,95601.0,0.00024606]
[1763370323824,0.67431025,95602.0,95601.0,0.00024606]
[1763370325168,0.64629519,95602.0,95601.0,0.00024606]
[1763370325976,0.43006455,95602.0,95601.0,0.00024606]
[1763370326207,0.63926519,95602.0,95601.0,0.00024606]
[1763370326798,0.64629519,95602.0,95601.0,0.00024606]
[1763370328226,0.72439541,95602.0,95601.0,0.00024606]
[1763370328435,0.7621328,95602.0,95601.0,0.00024606]
[1763370331690,0.75993019,95602.0,95601.0,0.00024606]
[1763370332331,0.55072955,95602.0,95601.0,0.00024606]
[1763370332544,0.53887216,95602.0,95601.0,0.00024606]
[1763370332748,0.44546513,95602.0,95601.0,0.00024606]
[1763370333569,0.44546513,95602.0,95601.0,0.00124606]
[1763370333802,0.12246513,95602.0,95601.0,0.02912606]
[1763370333999,0.12246513,95602.0,95601.0,0.15451606]
[1763370334193,0.08361167,95602.0,95601.0,0.15451606]
[1763370334470,0.0314607,95602.0,95601.0,0.15451606]
[1763370334678,0.02243058,95607.0,95601.0,0.15451606]
[1763370334867,0.01948619,95606.0,95602.0,0.03615]
[1763370335097,0.01948619,95605.0,95602.0,0.03615]
[1763370335241,0.05950964,95607.0,95602.0,0.03615]
[1763370335242,0.01948619,95604.0,95603.0,0.02439]
[1763370335813,0.01948619,95604.0,95603.0,0.04051]
[1763370336368,0.01948619,95604.0,95603.0,0.14051]
[1763370336566,0.01948619,95604.0,95603.0,0.14151]
[1763370336763,0.01948619,95604.0,95603.0,0.14251]
[1763370337814,0.22868245,95604.0,95603.0,0.102]
[1763370338035,0.25111303,95604.0,95603.0,0.102]
[1763370338217,0.26084777,95604.0,95603.0,0.102]
[1763370338751,0.05165151,95604.0,95603.0,0.102]
[1763370339151,0.05165151,95604.0,95603.0,0.14251]
[1763370339292,0.02922093,95604.0,95603.0,0.14251]
[1763370340093,0.02922093,95604.0,95603.0,0.11812]
[1763370340339,0.02922093,95604.0,95603.0,0.102]
[1763370341534,0.02922093,95604.0,95603.0,0.11812]
[1763370341749,0.02922093,95604.0,95603.0,0.14251]
[1763370341956,0.01948619,95604.0,95603.0,0.14251]
[1763370342602,0.23834245,95604.0,95603.0,0.102]
[1763370342805,0.23834245,95604.0,95603.0,0.002]
[1763370342806,0.30824435,95604.0,95603.0,0.002]
[1763370343036,0.12159285,95604.0,95603.0,0.002]
[1763370343223,0.07178751,95604.0,95603.0,0.002]
[1763370343443,0.07178751,95604.0,95603.0,0.001]
[1763370343675,0.06695751,95604.0,95603.0,0.001]
[1763370344117,0.02922012,95604.0,95601.0,0.00024606]
[1763370344325,0.03145308,95607.0,95603.0,0.1]
[1763370344534,0.02802999,95604.0,95603.0,0.101]
[1763370344755,0.05722659,95604.0,95603.0,0.101]
[1763370345006,0.05722659,95604.0,95603.0,0.11612]
[1763370346070,0.05722659,95604.0,95603.0,0.102]
[1763370346222,0.07965717,95604.0,95603.0,0.102]
[1763370346422,0.28885343,95604.0,95603.0,0.102]
[1763370346770,0.11111477,95604.0,95603.0,0.102]
[1763370347187,0.08868419,95604.0,95603.0,0.102]
[1763370348410,0.11111477,95604.0,95603.0,0.102]
[1763370348626,0.08868419,95604.0,95603.0,0.102]
[1763370349571,0.08868419,95604.0,95603.0,0.14133]
[1763370349572,0.0886859,95604.0,95603.0,0.14133]
[1763370349771,0.05092314,95604.0,95603.0,0.14133]
[1763370351549,0.05092314,95604.0,95603.0,0.11863]
[1763370352571,0.05092314,95604.0,95603.0,0.14133]
[1763370353984,0.05092314,95604.0,95603.0,0.11863]
[1763370354191,0.05092314,95604.0,95603.0,0.102]
[1763370355200,0.28737998,95604.0,95603.0,0.102]
[1763370355649,0.08791426,95604.0,95603.0,0.102]
[1763370355774,0.09351367,95604.0,95603.0,0.102]
[1763370356438,0.08868367,95604.0,95603.0,0.102]
[1763370357056,0.06065368,95604.0,95603.0,0.102]
[1763370357256,0.08868367,95604.0,95603.0,0.102]
[1763370358024,0.06065368,95604.0,95603.0,0.102]
[1763370358387,0.08868367,95604.0,95603.0,0.102]
[1763370359311,0.08868367,95604.0,95603.0,0.11863]
[1763370359659,0.06065368,95604.0,95603.0,0.14133]
[1763370359861,0.05092314,95604.0,95603.0,0.14133]
[1763370360593,0.01946554,95604.0,95603.0,0.14133]
[1763370368716,0.40237358,95613.0,95603.0,0.14133]
[1763370368932,0.40247084,95613.0,95604.0,0.0227]
[1763370369362,0.03154925,95613.0,95603.0,0.102]
[1763370369570,0.03154925,95613.0,95604.0,0.0227]
[1763370369966,0.03154925,95613.0,95604.0,0.1227]
[1763370371478,0.03154925,95613.0,95605.0,0.0227]
[1763370371929,9.726e-05,95613.0,95605.0,0.0227]
[1763370372155,9.726e-05,95613.0,95604.0,0.1]
[1763370372832,0.03145196,95612.0,95604.0,0.1227]
[1763370373463,0.03145196,95612.0,95609.0,0.1]
[1763370374523,0.03145196,95612.0,95611.0,0.01663]
[1763370375184,0.03145196,95612.0,95611.0,0.03933]
[1763370376233,0.03245196,95612.0,95611.0,0.03933]
[1763370376438,0.03245196,95612.0,95611.0,0.01663]
[1763370376649,0.03245196,95612.0,95611.0,0.03946]
[1763370377299,0.03145196,95612.0,95611.0,0.03946]
[1763370378127,0.03145196,95612.0,95611.0,0.01663]
[1763370380645,0.07332541,95612.0,95611.0,0.01663]
[1763370380849,0.05090987,95612.0,95611.0,0.01663]
[1763370381729,0.20919407,95605.0,95604.0,0.1]
[1763370381918,0.20920064,95602.0,95590.0,0.03466]
[1763370382129,0.30322506,95602.0,95590.0,0.03466]
[1763370382345,0.33951147,95602.0,95590.0,0.03466]
[1763370382554,0.1744882,95602.0,95590.0,0.03466]
[1763370383003,0.1696582,95602.0,95590.0,0.03466]
[1763370383846,0.1706582,95602.0,95590.0,0.03466]
[1763370384054,0.1696582,95602.0,95590.0,0.03466]
[1763370384476,0.1706582,95602.0,95590.0,0.03466]
[1763370384903,0.12648083,95602.0,95590.0,0.03466]
[1763370385113,0.10406529,95602.0,95594.0,0.0229]
[1763370385327,0.12648083,95602.0,95594.0,0.0229]
[1763370385559,0.12048715,95602.0,95594.0,0.0229]
[1763370385766,0.14290269,95602.0,95594.0,0.0229]
[1763370387051,0.14285537,95602.0,95594.0,0.0229]
[1763370387256,0.14185537,95602.0,95594.0,0.0229]
[1763370387471,0.14285537,95602.0,95594.0,0.0229]
[1763370389411,0.35205601,95602.0,95594.0,0.0229]
[1763370390248,0.36176243,95602.0,95590.0,0.01176]
[1763370390935,0.36659243,95602.0,95590.0,0.01176]
[1763370391347,0.36559243,95602.0,95590.0,0.01176]
[1763370391554,0.36659243,95602.0,95590.0,0.01176]
[1763370392712,0.36759243,95602.0,95590.0,0.01176]
[1763370392921,0.36659243,95602.0,95590.0,0.01176]
[1763370393127,0.36759243,95602.0,95590.0,0.01176]
[1763370393327,0.36659243,95602.0,95590.0,0.01176]
[1763370393534,0.16752895,95602.0,95593.0,0.01227]
[1763370393741,0.19142895,95602.0,95593.0,0.01227]
[1763370394383,0.19242895,95602.0,95593.0,0.01227]
[1763370394838,0.19142895,95602.0,95593.0,0.01227]
[1763370395044,0.19242895,95602.0,95593.0,0.01227]
[1763370395493,0.19142895,95602.0,95593.0,0.01227]
[1763370395896,0.19242895,95602.0,95593.0,0.01227]
[1763370396308,0.19142895,95602.0,95593.0,0.01227]
[1763370396775,0.19242895,95602.0,95593.0,0.01227]
[1763370397150,0.19142895,95602.0,95593.0,0.01227]
[1763370397565,0.19242895,95602.0,95593.0,0.01227]
[1763370398107,0.19142895,95602.0,95593.0,0.01227]
[1763370398414,0.19242895,95602.0,95593.0,0.01227]